[Event "Early-Titled-Tuesday-Blitz-May-28-2024"]
[Site "Chess.com"]
[Date "2024.05.28"]
[Round "7"]
[White "Shuvalov"]
[Black "chessdjw"]
[Result "0-1"]
[WhiteElo "2582"]
[BlackElo "2792"]
[TimeControl "180+1"]
[EndTime "9:18:51 PDT"]
[Termination "chessdjw won by resignation"]

1. d4 {[%clk 0:02:59.8]} 1... Nf6 {[%clk 0:03:00]} 2. c4 {[%clk 0:02:59.5]} 2...
e6 {[%clk 0:03:00.1]} 3. Nf3 {[%clk 0:02:59.1]} 3... b6 {[%clk 0:03:00]} 4. g3
{[%clk 0:02:58.8]} 4... Bb7 {[%clk 0:03:00.1]} 5. Bg2 {[%clk 0:02:59.2]} 5...
Bb4+ {[%clk 0:02:59.6]} 6. Bd2 {[%clk 0:02:58.6]} 6... c5 {[%clk 0:03:00.2]} 7.
d5 {[%clk 0:02:51.8]} 7... exd5 {[%clk 0:02:59.6]} 8. Nh4 {[%clk 0:02:50.3]}
8... O-O {[%clk 0:02:43.4]} 9. O-O {[%clk 0:02:48.2]} 9... d6 {[%clk 0:02:30]}
10. Bg5 {[%clk 0:02:42.4]} 10... h6 {[%clk 0:02:26.8]} 11. Bxf6 {[%clk
0:02:36.5]} 11... Qxf6 {[%clk 0:02:27.7]} 12. Qc2 {[%clk 0:02:14.8]} 12... Nd7
{[%clk 0:02:09.7]} 13. Nf5 {[%clk 0:02:02.2]} 13... Rfe8 {[%clk 0:01:57.2]} 14.
Ne3 {[%clk 0:01:47.8]} 14... Rxe3 {[%clk 0:01:43.2]} 15. fxe3 {[%clk 0:01:46.8]}
15... Qe5 {[%clk 0:01:43.8]} 16. Nc3 {[%clk 0:01:34.1]} 16... Qxe3+ {[%clk
0:01:38.9]} 17. Kh1 {[%clk 0:01:34.3]} 17... Bxc3 {[%clk 0:01:34.5]} 18. Qxc3
{[%clk 0:01:31.6]} 18... Qxc3 {[%clk 0:00:34]} 19. bxc3 {[%clk 0:01:32.5]} 19...
Re8 {[%clk 0:00:34.4]} 20. Rae1 {[%clk 0:01:16.6]} 20... Re3 {[%clk 0:00:32.8]}
21. Rf3 {[%clk 0:01:04.3]} 21... Re4 {[%clk 0:00:27.5]} 22. cxd5 {[%clk
0:01:01.1]} 22... Ra4 {[%clk 0:00:27.6]} 23. Ra1 {[%clk 0:00:51.1]} 23... Ne5
{[%clk 0:00:24.8]} 24. Rf4 {[%clk 0:00:50]} 24... Ra3 {[%clk 0:00:24.3]} 25. c4
{[%clk 0:00:43.5]} 25... Ba6 {[%clk 0:00:24.4]} 26. Rc1 {[%clk 0:00:27.5]} 26...
Rxa2 {[%clk 0:00:23.9]} 27. Bf1 {[%clk 0:00:26.6]} 27... Kf8 {[%clk 0:00:19.4]}
28. h3 {[%clk 0:00:24.2]} 28... Ke7 {[%clk 0:00:18.7]} 29. Re4 {[%clk
0:00:24.4]} 29... f5 {[%clk 0:00:18.2]} 30. Rf4 {[%clk 0:00:18.1]} 30... Bc8
{[%clk 0:00:18.3]} 31. Kg1 {[%clk 0:00:16]} 31... g5 {[%clk 0:00:18.6]} 32. Rf2
{[%clk 0:00:15.5]} 32... Bd7 {[%clk 0:00:17.8]} 33. e4 {[%clk 0:00:15.1]} 33...
Ra3 {[%clk 0:00:15.3]} 34. exf5 {[%clk 0:00:14.7]} 34... Rxg3+ {[%clk
0:00:14.4]} 35. Kh2 {[%clk 0:00:15.1]} 35... Re3 {[%clk 0:00:14.5]} 36. f6+
{[%clk 0:00:15.3]} 36... Kf7 {[%clk 0:00:15]} 37. Be2 {[%clk 0:00:15.2]} 37...
Rxh3+ {[%clk 0:00:11.2]} 38. Kg2 {[%clk 0:00:15.6]} 38... h5 {[%clk 0:00:10.5]}
39. Rh1 {[%clk 0:00:14.3]} 39... Rxh1 {[%clk 0:00:10.2]} 40. Kxh1 {[%clk
0:00:15.2]} 40... Bg4 {[%clk 0:00:06.6]} 41. Bxg4 {[%clk 0:00:14.1]} 41... Nxg4
{[%clk 0:00:07.5]} 42. Ra2 {[%clk 0:00:13.7]} 42... Kxf6 {[%clk 0:00:07.8]} 43.
Rxa7 {[%clk 0:00:13.7]} 43... Ne5 {[%clk 0:00:08.5]} 44. Rh7 {[%clk 0:00:11.7]}
44... Nxc4 {[%clk 0:00:06.6]} 45. Rxh5 {[%clk 0:00:11.4]} 45... b5 {[%clk
0:00:07.2]} 46. Kg2 {[%clk 0:00:10.7]} 46... b4 {[%clk 0:00:07.3]} 47. Kf3
{[%clk 0:00:09.4]} 47... b3 {[%clk 0:00:07.5]} 48. Rh1 {[%clk 0:00:09.5]} 48...
b2 {[%clk 0:00:07.6]} 49. Ke2 {[%clk 0:00:09.3]} 49... Na3 {[%clk 0:00:06.3]}
50. Rf1+ {[%clk 0:00:08.8]} 50... Ke5 {[%clk 0:00:06.7]} 51. Kd2 {[%clk
0:00:06.8]} 51... b1=Q {[%clk 0:00:06.9]} 52. Rxb1 {[%clk 0:00:07]} 52... Nxb1+
{[%clk 0:00:07.8]} 0-1

[Event "Early-Titled-Tuesday-Blitz-May-28-2024"]
[Site "Chess.com"]
[Date "2024.05.28"]
[Round "7"]
[White "Djager97"]
[Black "Lennis93"]
[Result "0-1"]
[WhiteElo "2551"]
[BlackElo "2770"]
[TimeControl "180+1"]
[EndTime "9:18:55 PDT"]
[Termination "Lennis93 won by resignation"]

1. e4 {[%clk 0:03:00.9]} 1... c5 {[%clk 0:03:00.1]} 2. Nf3 {[%clk 0:03:00.8]}
2... e6 {[%clk 0:03:01]} 3. b3 {[%clk 0:03:00.2]} 3... b6 {[%clk 0:02:59.4]} 4.
Bb2 {[%clk 0:02:59.9]} 4... Bb7 {[%clk 0:02:59.9]} 5. Bd3 {[%clk 0:02:51.7]}
5... Nc6 {[%clk 0:02:59.8]} 6. Nc3 {[%clk 0:02:45.3]} 6... Nf6 {[%clk
0:02:56.3]} 7. Qe2 {[%clk 0:02:35]} 7... Nb4 {[%clk 0:02:43.3]} 8. e5 {[%clk
0:02:25.7]} 8... Nfd5 {[%clk 0:02:37.9]} 9. Nxd5 {[%clk 0:02:18.3]} 9... Nxd3+
{[%clk 0:02:30.6]} 10. Qxd3 {[%clk 0:02:15.9]} 10... Bxd5 {[%clk 0:02:29.9]} 11.
O-O-O {[%clk 0:02:03.2]} 11... a5 {[%clk 0:02:28.6]} 12. a4 {[%clk 0:01:47.3]}
12... Qc7 {[%clk 0:02:22.3]} 13. c4 {[%clk 0:01:45.1]} 13... Bc6 {[%clk
0:02:17.1]} 14. Qe3 {[%clk 0:01:42.6]} 14... d5 {[%clk 0:02:08]} 15. exd6 {[%clk
0:01:38.4]} 15... Bxd6 {[%clk 0:02:06.4]} 16. Bxg7 {[%clk 0:00:43.4]} 16... Rg8
{[%clk 0:02:04.4]} 17. Qc3 {[%clk 0:00:41]} 17... O-O-O {[%clk 0:02:03.3]} 18.
Rhe1 {[%clk 0:00:36.2]} 18... f5 {[%clk 0:01:32.7]} 19. Be5 {[%clk 0:00:35.8]}
19... Rxg2 {[%clk 0:01:31.4]} 20. Bxd6 {[%clk 0:00:34.7]} 20... Qxd6 {[%clk
0:01:31.8]} 21. Ne5 {[%clk 0:00:35.2]} 21... Be8 {[%clk 0:01:27]} 22. Qf3 {[%clk
0:00:33.4]} 22... Rg7 {[%clk 0:01:25.1]} 23. Qa8+ {[%clk 0:00:16.2]} 23... Qb8
{[%clk 0:01:24.3]} 24. Qxb8+ {[%clk 0:00:16.4]} 24... Kxb8 {[%clk 0:01:24.2]}
25. Rg1 {[%clk 0:00:17.3]} 25... Rc7 {[%clk 0:01:16.9]} 26. Rg8 {[%clk
0:00:16.3]} 26... Kc8 {[%clk 0:01:13.8]} 27. Rdg1 {[%clk 0:00:16]} 27... Bg6
{[%clk 0:00:54.2]} 28. Nxg6 {[%clk 0:00:16.4]} 28... hxg6 {[%clk 0:00:51.7]} 29.
Rxd8+ {[%clk 0:00:15.8]} 29... Kxd8 {[%clk 0:00:52.6]} 30. Rxg6 {[%clk 0:00:16]}
30... Re7 {[%clk 0:00:52.1]} 31. f4 {[%clk 0:00:13.1]} 31... Kd7 {[%clk
0:00:51.8]} 32. Kd1 {[%clk 0:00:12.2]} 32... Rh7 {[%clk 0:00:52.4]} 33. Kc2
{[%clk 0:00:10.8]} 33... Rxh2 {[%clk 0:00:51.9]} 34. Rg7+ {[%clk 0:00:11.3]}
34... Kc6 {[%clk 0:00:51.8]} 35. Kd3 {[%clk 0:00:09.5]} 35... Rh1 {[%clk
0:00:51.2]} 36. Re7 {[%clk 0:00:08.9]} 36... Re1 {[%clk 0:00:51.8]} 37. Re8
{[%clk 0:00:06.6]} 37... Re4 {[%clk 0:00:52.4]} 38. Re7 {[%clk 0:00:05]} 38...
Kd6 {[%clk 0:00:52.9]} 39. Rb7 {[%clk 0:00:05.1]} 39... Kc6 {[%clk 0:00:53]} 40.
Re7 {[%clk 0:00:05.8]} 40... Kd6 {[%clk 0:00:42.8]} 41. Rb7 {[%clk 0:00:05.6]}
41... Rxf4 {[%clk 0:00:43.7]} 42. Rxb6+ {[%clk 0:00:05.9]} 42... Ke5 {[%clk
0:00:44.3]} 43. Rb5 {[%clk 0:00:03.6]} 43... Rd4+ {[%clk 0:00:43.9]} 44. Kc3
{[%clk 0:00:02.7]} 44... Kd6 {[%clk 0:00:43.8]} 45. Rxa5 {[%clk 0:00:02.9]}
45... e5 {[%clk 0:00:43.8]} 46. Ra6+ {[%clk 0:00:02]} 46... Ke7 {[%clk
0:00:44.1]} 47. Ra7+ {[%clk 0:00:02.3]} 47... Kf6 {[%clk 0:00:44.1]} 48. a5
{[%clk 0:00:03.2]} 48... f4 {[%clk 0:00:41.9]} 49. a6 {[%clk 0:00:02.8]} 49...
Rd6 {[%clk 0:00:41.1]} 50. Ra8 {[%clk 0:00:03.3]} 50... Kg7 {[%clk 0:00:31.8]}
51. b4 {[%clk 0:00:03.4]} 51... cxb4+ {[%clk 0:00:31]} 52. Kxb4 {[%clk
0:00:04.2]} 52... Rxd2 {[%clk 0:00:31.6]} 53. a7 {[%clk 0:00:03.9]} 53... Ra2
{[%clk 0:00:32]} 54. c5 {[%clk 0:00:03.9]} 54... f3 {[%clk 0:00:31.5]} 55. c6
{[%clk 0:00:02.2]} 55... f2 {[%clk 0:00:30.2]} 56. c7 {[%clk 0:00:02.6]} 56...
f1=Q {[%clk 0:00:30.4]} 57. Rg8+ {[%clk 0:00:03]} 57... Kxg8 {[%clk 0:00:25.6]}
58. c8=Q+ {[%clk 0:00:03.4]} 58... Qf8+ {[%clk 0:00:26.3]} 59. Qxf8+ {[%clk
0:00:01.3]} 59... Kxf8 {[%clk 0:00:27.2]} 0-1

[Event "Early-Titled-Tuesday-Blitz-May-28-2024"]
[Site "Chess.com"]
[Date "2024.05.28"]
[Round "7"]
[White "Chopper1905"]
[Black "alexrustemov"]
[Result "1-0"]
[WhiteElo "2967"]
[BlackElo "2828"]
[TimeControl "180+1"]
[EndTime "9:18:58 PDT"]
[Termination "Chopper1905 won on time"]

1. d4 {[%clk 0:03:00.9]} 1... d5 {[%clk 0:03:00.1]} 2. c4 {[%clk 0:03:00.5]}
2... dxc4 {[%clk 0:02:59.9]} 3. Nf3 {[%clk 0:02:57.1]} 3... Nf6 {[%clk
0:03:00.2]} 4. e3 {[%clk 0:02:57.7]} 4... e6 {[%clk 0:03:00.6]} 5. Bxc4 {[%clk
0:02:58.2]} 5... c5 {[%clk 0:03:00.9]} 6. O-O {[%clk 0:02:58.5]} 6... a6 {[%clk
0:03:01.4]} 7. dxc5 {[%clk 0:02:58.7]} 7... Bxc5 {[%clk 0:03:00.5]} 8. Qxd8+
{[%clk 0:02:57.2]} 8... Kxd8 {[%clk 0:03:01.4]} 9. Be2 {[%clk 0:02:57.4]} 9...
Ke7 {[%clk 0:03:01.7]} 10. Nc3 {[%clk 0:02:57.4]} 10... Bd7 {[%clk 0:03:00.6]}
11. Nd2 {[%clk 0:02:56.9]} 11... Bc6 {[%clk 0:02:54.2]} 12. Nb3 {[%clk
0:02:55.9]} 12... Bd6 {[%clk 0:02:47]} 13. Na5 {[%clk 0:02:44.9]} 13... Bb4
{[%clk 0:02:41]} 14. Nxc6+ {[%clk 0:02:44.3]} 14... Nxc6 {[%clk 0:02:41.6]} 15.
Bd2 {[%clk 0:02:44.7]} 15... Rhd8 {[%clk 0:02:40.4]} 16. Rfd1 {[%clk 0:02:44]}
16... Rac8 {[%clk 0:02:35.5]} 17. a3 {[%clk 0:02:36]} 17... Bd6 {[%clk
0:02:33.7]} 18. Be1 {[%clk 0:01:39.7]} 18... Ne5 {[%clk 0:02:27]} 19. Rac1
{[%clk 0:01:33]} 19... Nc4 {[%clk 0:02:20.7]} 20. Na4 {[%clk 0:01:30.7]} 20...
Ne5 {[%clk 0:01:54.4]} 21. Nb6 {[%clk 0:01:29.6]} 21... Rxc1 {[%clk 0:01:53.4]}
22. Rxc1 {[%clk 0:01:30.5]} 22... Ke8 {[%clk 0:01:36.4]} 23. h3 {[%clk
0:01:17.3]} 23... Nfd7 {[%clk 0:01:31.2]} 24. Ba5 {[%clk 0:00:34.5]} 24... Nxb6
{[%clk 0:01:25.7]} 25. Bxb6 {[%clk 0:00:34.8]} 25... Rd7 {[%clk 0:01:25.6]} 26.
f4 {[%clk 0:00:33.7]} 26... Ng6 {[%clk 0:01:17.9]} 27. Rc8+ {[%clk 0:00:32.4]}
27... Ke7 {[%clk 0:01:18]} 28. Kf2 {[%clk 0:00:29.7]} 28... f5 {[%clk
0:01:10.5]} 29. Bc4 {[%clk 0:00:28]} 29... Kf7 {[%clk 0:01:04]} 30. g4 {[%clk
0:00:27.4]} 30... Ne7 {[%clk 0:01:03.8]} 31. Rh8 {[%clk 0:00:25.8]} 31... h6
{[%clk 0:00:43.9]} 32. gxf5 {[%clk 0:00:22.7]} 32... Nxf5 {[%clk 0:00:43.7]} 33.
e4 {[%clk 0:00:23.1]} 33... Nh4 {[%clk 0:00:22.7]} 34. f5 {[%clk 0:00:22.8]}
34... Re7 {[%clk 0:00:22.9]} 35. Bd8 {[%clk 0:00:20]} 35... Kf6 {[%clk
0:00:04.6]} 36. fxe6 {[%clk 0:00:17.7]} 36... Ng6 {[%clk 0:00:03.6]} 37. Bd5
{[%clk 0:00:15.4]} 37... Ne5 {[%clk 0:00:02.9]} 38. Rf8+ {[%clk 0:00:13.8]}
38... Kg6 {[%clk 0:00:03]} 39. Bxe7 {[%clk 0:00:13.9]} 39... Bxe7 {[%clk
0:00:03.4]} 40. Re8 {[%clk 0:00:13.2]} 40... Kf6 {[%clk 0:00:03.2]} 41. Bxb7
{[%clk 0:00:12.2]} 41... a5 {[%clk 0:00:03.6]} 42. Bd5 {[%clk 0:00:12.3]} 42...
Nd3+ {[%clk 0:00:03.6]} 43. Kf3 {[%clk 0:00:11.5]} 43... Nxb2 {[%clk 0:00:04.5]}
44. e5+ {[%clk 0:00:10.4]} 44... Kxe5 {[%clk 0:00:05]} 45. Rxe7 {[%clk
0:00:11.1]} 45... Kxd5 {[%clk 0:00:05.7]} 46. Rb7 {[%clk 0:00:11.1]} 46... Nc4
{[%clk 0:00:02]} 47. e7 {[%clk 0:00:11.5]} 47... Ne5+ {[%clk 0:00:01.7]} 48. Ke2
{[%clk 0:00:11]} 48... Nc4 {[%clk 0:00:01]} 49. e8=Q {[%clk 0:00:11]} 49... Kd4
{[%clk 0:00:01.6]} 50. Rd7+ {[%clk 0:00:10.9]} 50... Kc3 {[%clk 0:00:02.5]} 51.
Rc7 {[%clk 0:00:11.1]} 51... Kb3 {[%clk 0:00:01.9]} 52. Qb5+ {[%clk 0:00:10.9]}
1-0

[Event "Early-Titled-Tuesday-Blitz-May-28-2024"]
[Site "Chess.com"]
[Date "2024.05.28"]
[Round "7"]
[White "JonasEilenberg"]
[Black "stollenmonster"]
[Result "1-0"]
[WhiteElo "2620"]
[BlackElo "2860"]
[TimeControl "180+1"]
[EndTime "9:18:58 PDT"]
[Termination "JonasEilenberg won on time"]

1. d4 {[%clk 0:03:00.9]} 1... Nf6 {[%clk 0:02:59]} 2. c4 {[%clk 0:03:01.2]} 2...
e6 {[%clk 0:02:59.9]} 3. Nc3 {[%clk 0:03:01.5]} 3... d5 {[%clk 0:03:00.8]} 4.
Bg5 {[%clk 0:03:00.3]} 4... Be7 {[%clk 0:03:01.1]} 5. Nf3 {[%clk 0:03:00]} 5...
Ne4 {[%clk 0:03:01.4]} 6. Bxe7 {[%clk 0:02:56.3]} 6... Qxe7 {[%clk 0:03:02.3]}
7. Qc2 {[%clk 0:02:49]} 7... f5 {[%clk 0:03:02]} 8. cxd5 {[%clk 0:02:44.4]} 8...
Nxc3 {[%clk 0:03:01.6]} 9. Qxc3 {[%clk 0:02:36.8]} 9... exd5 {[%clk 0:03:01.6]}
10. Ne5 {[%clk 0:02:36.7]} 10... O-O {[%clk 0:02:54.3]} 11. e3 {[%clk
0:02:36.4]} 11... c6 {[%clk 0:02:55]} 12. Bd3 {[%clk 0:02:30.9]} 12... Nd7
{[%clk 0:02:55.2]} 13. f4 {[%clk 0:02:30.7]} 13... Nxe5 {[%clk 0:02:55.7]} 14.
fxe5 {[%clk 0:02:29]} 14... Qh4+ {[%clk 0:02:55.3]} 15. g3 {[%clk 0:02:26.4]}
15... Qh3 {[%clk 0:02:49.9]} 16. Bf1 {[%clk 0:02:20.3]} 16... Qh5 {[%clk
0:02:48]} 17. Bg2 {[%clk 0:02:14.4]} 17... Be6 {[%clk 0:02:43.1]} 18. O-O {[%clk
0:02:14.6]} 18... g5 {[%clk 0:02:42.2]} 19. Qb4 {[%clk 0:02:08.3]} 19... Rab8
{[%clk 0:02:40.9]} 20. Rf2 {[%clk 0:02:06.3]} 20... Rf7 {[%clk 0:02:14.4]} 21.
Raf1 {[%clk 0:02:04.3]} 21... Rd8 {[%clk 0:01:55.3]} 22. a4 {[%clk 0:01:56.7]}
22... Qg6 {[%clk 0:01:52.8]} 23. a5 {[%clk 0:01:52.9]} 23... h5 {[%clk
0:01:38.4]} 24. Kh1 {[%clk 0:01:52.1]} 24... h4 {[%clk 0:01:32.9]} 25. gxh4
{[%clk 0:01:52.3]} 25... g4 {[%clk 0:01:32.8]} 26. Rf4 {[%clk 0:01:38.1]} 26...
Qh5 {[%clk 0:01:27.6]} 27. Qe1 {[%clk 0:01:35]} 27... Rh7 {[%clk 0:01:19.1]} 28.
Qg3 {[%clk 0:01:28.2]} 28... Qxh4 {[%clk 0:01:06.7]} 29. Kg1 {[%clk 0:01:28.6]}
29... Qxg3 {[%clk 0:00:42.4]} 30. hxg3 {[%clk 0:01:29.5]} 30... b6 {[%clk
0:00:42.8]} 31. Rc1 {[%clk 0:01:29.1]} 31... Rc7 {[%clk 0:00:39.6]} 32. axb6
{[%clk 0:01:09.1]} 32... axb6 {[%clk 0:00:40.5]} 33. b4 {[%clk 0:01:09.9]} 33...
Rdc8 {[%clk 0:00:36.1]} 34. Rff1 {[%clk 0:00:58.7]} 34... c5 {[%clk 0:00:34.9]}
35. dxc5 {[%clk 0:00:47.4]} 35... bxc5 {[%clk 0:00:35.8]} 36. b5 {[%clk
0:00:48.3]} 36... c4 {[%clk 0:00:34.7]} 37. Rfd1 {[%clk 0:00:48]} 37... Rc5
{[%clk 0:00:35.1]} 38. b6 {[%clk 0:00:35.6]} 38... Rb8 {[%clk 0:00:35.3]} 39.
Rb1 {[%clk 0:00:36]} 39... Kf7 {[%clk 0:00:33.2]} 40. b7 {[%clk 0:00:33.4]}
40... Ke7 {[%clk 0:00:33.1]} 41. Rb6 {[%clk 0:00:32.3]} 41... c3 {[%clk
0:00:26.9]} 42. Rc1 {[%clk 0:00:30.2]} 42... Rc7 {[%clk 0:00:26.5]} 43. Rb3
{[%clk 0:00:25.6]} 43... d4 {[%clk 0:00:25.9]} 44. Ra3 {[%clk 0:00:21.9]} 44...
dxe3 {[%clk 0:00:04.9]} 45. Raxc3 {[%clk 0:00:21.4]} 45... Rxc3 {[%clk
0:00:05.8]} 46. Rxc3 {[%clk 0:00:22.3]} 46... Bd7 {[%clk 0:00:05.1]} 47. Rxe3
{[%clk 0:00:17.8]} 47... Ke6 {[%clk 0:00:05.7]} 48. Rd3 {[%clk 0:00:16.4]} 48...
Bb5 {[%clk 0:00:05]} 49. Rc3 {[%clk 0:00:13.4]} 49... Be2 {[%clk 0:00:02.8]} 50.
Rc8 {[%clk 0:00:12.4]} 50... Rxb7 {[%clk 0:00:01.6]} 51. Bxb7 {[%clk 0:00:11.9]}
1-0

[Event "Early-Titled-Tuesday-Blitz-May-28-2024"]
[Site "Chess.com"]
[Date "2024.05.28"]
[Round "7"]
[White "bazar-wokzal"]
[Black "RandomNoob04"]
[Result "0-1"]
[WhiteElo "2580"]
[BlackElo "2775"]
[TimeControl "180+1"]
[EndTime "9:18:58 PDT"]
[Termination "RandomNoob04 won by resignation"]

1. e4 {[%clk 0:03:00.9]} 1... d5 {[%clk 0:02:59.9]} 2. exd5 {[%clk 0:03:00.4]}
2... Qxd5 {[%clk 0:03:00.8]} 3. Nc3 {[%clk 0:03:00.3]} 3... Qa5 {[%clk
0:03:01.5]} 4. Nf3 {[%clk 0:03:00.7]} 4... Nf6 {[%clk 0:03:01.9]} 5. d4 {[%clk
0:03:01.1]} 5... Bf5 {[%clk 0:03:02.3]} 6. Ne5 {[%clk 0:03:00.8]} 6... c6 {[%clk
0:03:01.6]} 7. g4 {[%clk 0:03:00.6]} 7... Bg6 {[%clk 0:03:01.2]} 8. h4 {[%clk
0:02:59.9]} 8... Nbd7 {[%clk 0:03:01.2]} 9. Nc4 {[%clk 0:02:59.3]} 9... Qc7
{[%clk 0:02:55.1]} 10. h5 {[%clk 0:02:59.3]} 10... Be4 {[%clk 0:02:55.1]} 11.
Nxe4 {[%clk 0:02:59.7]} 11... Nxe4 {[%clk 0:02:56]} 12. Qf3 {[%clk 0:02:59.9]}
12... Nd6 {[%clk 0:02:46]} 13. Bf4 {[%clk 0:02:59.6]} 13... Nf6 {[%clk 0:02:42]}
14. O-O-O {[%clk 0:02:55.1]} 14... Nd5 {[%clk 0:02:39.9]} 15. Bg3 {[%clk
0:02:50.4]} 15... O-O-O {[%clk 0:02:39.1]} 16. g5 {[%clk 0:02:42.6]} 16... Kb8
{[%clk 0:02:35.3]} 17. g6 {[%clk 0:02:37.1]} 17... hxg6 {[%clk 0:02:32.8]} 18.
hxg6 {[%clk 0:02:37.1]} 18... Rxh1 {[%clk 0:02:33.7]} 19. Qxh1 {[%clk
0:02:37.3]} 19... fxg6 {[%clk 0:02:33.5]} 20. Bd3 {[%clk 0:02:16.9]} 20... g5
{[%clk 0:02:27.6]} 21. Qh5 {[%clk 0:02:08.6]} 21... Nf4 {[%clk 0:02:22.4]} 22.
Qxg5 {[%clk 0:02:05.3]} 22... Nxd3+ {[%clk 0:02:11.6]} 23. Rxd3 {[%clk
0:02:06.2]} 23... Qd7 {[%clk 0:02:05.2]} 24. Ne5 {[%clk 0:01:48.5]} 24... Qe6
{[%clk 0:02:01.1]} 25. Rb3 {[%clk 0:01:36]} 25... Ka8 {[%clk 0:01:44.2]} 26. Qf4
{[%clk 0:01:23.8]} 26... g5 {[%clk 0:01:36.4]} 27. Qf3 {[%clk 0:01:10.4]} 27...
Nf5 {[%clk 0:01:24.2]} 28. c3 {[%clk 0:01:00.2]} 28... Bg7 {[%clk 0:01:15.7]}
29. Nd3 {[%clk 0:00:51.2]} 29... Bxd4 {[%clk 0:01:11.3]} 30. Rb4 {[%clk
0:00:15]} 30... Bb6 {[%clk 0:01:01.4]} 31. Re4 {[%clk 0:00:15.1]} 31... Qd7
{[%clk 0:00:53.5]} 32. Kc2 {[%clk 0:00:12.5]} 32... Qd5 {[%clk 0:00:44.1]} 33.
Qe2 {[%clk 0:00:10.4]} 33... Qxa2 {[%clk 0:00:38.8]} 34. Nb4 {[%clk 0:00:09]}
34... Qa4+ {[%clk 0:00:33.3]} 35. b3 {[%clk 0:00:09]} 35... Qa1 {[%clk
0:00:31.1]} 36. Re5 {[%clk 0:00:09.2]} 36... Nxg3 {[%clk 0:00:22.5]} 37. fxg3
{[%clk 0:00:10.1]} 37... a5 {[%clk 0:00:22.8]} 38. Nd3 {[%clk 0:00:09.7]} 38...
Qa2+ {[%clk 0:00:21.9]} 39. Nb2 {[%clk 0:00:10]} 39... Qa3 {[%clk 0:00:15.9]}
40. Rxe7 {[%clk 0:00:10.1]} 40... Qd6 {[%clk 0:00:15.1]} 41. Re8 {[%clk
0:00:10.5]} 41... Ka7 {[%clk 0:00:14.4]} 42. Rxd8 {[%clk 0:00:10.3]} 42... Bxd8
{[%clk 0:00:13.8]} 43. Nc4 {[%clk 0:00:10.7]} 43... Qxg3 {[%clk 0:00:13.5]} 44.
Qd2 {[%clk 0:00:08.1]} 44... Bc7 {[%clk 0:00:11.9]} 45. Qd4+ {[%clk 0:00:08]}
45... b6 {[%clk 0:00:11.1]} 46. Qd7 {[%clk 0:00:08.3]} 46... Kb7 {[%clk
0:00:08.9]} 47. b4 {[%clk 0:00:08.8]} 47... axb4 {[%clk 0:00:08.5]} 48. cxb4
{[%clk 0:00:09.3]} 48... Qg2+ {[%clk 0:00:08.7]} 49. Kb3 {[%clk 0:00:09.4]}
49... Qd5 {[%clk 0:00:09]} 50. Qg7 {[%clk 0:00:08.2]} 50... b5 {[%clk
0:00:08.9]} 0-1

[Event "Early-Titled-Tuesday-Blitz-May-28-2024"]
[Site "Chess.com"]
[Date "2024.05.28"]
[Round "7"]
[White "DominguezOnYoutube"]
[Black "js20000"]
[Result "1-0"]
[WhiteElo "2985"]
[BlackElo "2701"]
[TimeControl "180+1"]
[EndTime "9:18:59 PDT"]
[Termination "DominguezOnYoutube won by resignation"]

1. e4 {[%clk 0:03:00.9]} 1... d6 {[%clk 0:03:00]} 2. d4 {[%clk 0:03:00.7]} 2...
Nf6 {[%clk 0:03:00.3]} 3. Nc3 {[%clk 0:03:01.3]} 3... e6 {[%clk 0:03:00.5]} 4.
f4 {[%clk 0:03:00.3]} 4... Nc6 {[%clk 0:03:00]} 5. Nf3 {[%clk 0:03:00.5]} 5...
d5 {[%clk 0:03:00.1]} 6. e5 {[%clk 0:02:59.4]} 6... Ne4 {[%clk 0:03:00.1]} 7. a3
{[%clk 0:02:55.2]} 7... Nxc3 {[%clk 0:02:59.8]} 8. bxc3 {[%clk 0:02:55]} 8...
Na5 {[%clk 0:03:00.1]} 9. Bd3 {[%clk 0:02:54.6]} 9... c5 {[%clk 0:03:00]} 10.
O-O {[%clk 0:02:53.9]} 10... c4 {[%clk 0:02:56.1]} 11. Be2 {[%clk 0:02:53.7]}
11... Be7 {[%clk 0:02:55.1]} 12. a4 {[%clk 0:02:42.4]} 12... Bd7 {[%clk
0:02:53.5]} 13. Ba3 {[%clk 0:02:42.3]} 13... Bxa3 {[%clk 0:02:41.7]} 14. Rxa3
{[%clk 0:02:43.2]} 14... Qe7 {[%clk 0:02:42]} 15. Ra1 {[%clk 0:02:42.6]} 15...
O-O-O {[%clk 0:02:41.8]} 16. Nd2 {[%clk 0:02:38.4]} 16... f5 {[%clk 0:02:36.8]}
17. exf6 {[%clk 0:02:23.9]} 17... gxf6 {[%clk 0:02:37.7]} 18. Bh5 {[%clk
0:02:22.7]} 18... e5 {[%clk 0:02:11.5]} 19. fxe5 {[%clk 0:02:18.4]} 19... fxe5
{[%clk 0:02:12.4]} 20. Re1 {[%clk 0:02:02.4]} 20... e4 {[%clk 0:02:09]} 21. Nf1
{[%clk 0:02:02.1]} 21... Qg5 {[%clk 0:02:02.9]} 22. Ne3 {[%clk 0:02:00.8]} 22...
Rhg8 {[%clk 0:01:55.7]} 23. Qe2 {[%clk 0:01:57.6]} 23... Rdf8 {[%clk 0:01:51.9]}
24. Rf1 {[%clk 0:01:56.1]} 24... Nc6 {[%clk 0:01:38.4]} 25. Bf7 {[%clk
0:01:45.1]} 25... Ne7 {[%clk 0:01:35.6]} 26. Bxg8 {[%clk 0:01:44.4]} 26... Rxg8
{[%clk 0:01:36.5]} 27. Rf7 {[%clk 0:01:31.3]} 27... Be6 {[%clk 0:01:18.4]} 28.
Rf2 {[%clk 0:01:23.2]} 28... Ng6 {[%clk 0:01:16.3]} 29. Raf1 {[%clk 0:01:22]}
29... Kd7 {[%clk 0:01:11.5]} 30. a5 {[%clk 0:01:20.1]} 30... Nh4 {[%clk
0:01:10.8]} 31. Kh1 {[%clk 0:01:16]} 31... a6 {[%clk 0:01:03.9]} 32. Rf6 {[%clk
0:01:07.4]} 32... Rg6 {[%clk 0:00:27.9]} 33. Rxg6 {[%clk 0:01:06.3]} 33... Nxg6
{[%clk 0:00:28.8]} 34. Qf2 {[%clk 0:01:02.4]} 34... h5 {[%clk 0:00:28.1]} 35.
Qg3 {[%clk 0:00:43.9]} 35... Qxg3 {[%clk 0:00:27.2]} 36. hxg3 {[%clk 0:00:44.8]}
36... Ne7 {[%clk 0:00:27.3]} 37. Kh2 {[%clk 0:00:38.9]} 37... Nc6 {[%clk
0:00:27.3]} 38. Ra1 {[%clk 0:00:38.7]} 38... Kc7 {[%clk 0:00:27.8]} 39. g4
{[%clk 0:00:38.4]} 39... hxg4 {[%clk 0:00:26.9]} 40. Kg3 {[%clk 0:00:38.3]}
40... b6 {[%clk 0:00:27.4]} 41. axb6+ {[%clk 0:00:37.6]} 41... Kxb6 {[%clk
0:00:28.3]} 42. Nxg4 {[%clk 0:00:36.1]} 42... Na7 {[%clk 0:00:28.9]} 43. Ne3
{[%clk 0:00:31.3]} 43... Nb5 {[%clk 0:00:28.9]} 44. Nd1 {[%clk 0:00:31.5]} 44...
a5 {[%clk 0:00:24.4]} 45. Kf4 {[%clk 0:00:31.4]} 45... Bd7 {[%clk 0:00:21.3]}
46. g4 {[%clk 0:00:31.1]} 46... Nc7 {[%clk 0:00:18.3]} 47. Ne3 {[%clk
0:00:28.9]} 47... a4 {[%clk 0:00:17.5]} 48. Ke5 {[%clk 0:00:25.9]} 48... Bc6
{[%clk 0:00:16.5]} 49. g5 {[%clk 0:00:25.7]} 49... Ka5 {[%clk 0:00:14]} 50. Kd6
{[%clk 0:00:22.8]} 50... Kb6 {[%clk 0:00:13.9]} 51. g6 {[%clk 0:00:22]} 51...
Nb5+ {[%clk 0:00:13.8]} 52. Ke5 {[%clk 0:00:22.1]} 52... Be8 {[%clk 0:00:13.4]}
53. Nxd5+ {[%clk 0:00:22.1]} 53... Ka5 {[%clk 0:00:13.5]} 54. g7 {[%clk
0:00:20.2]} 54... Bf7 {[%clk 0:00:14.1]} 55. Kxe4 {[%clk 0:00:18.3]} 55... a3
{[%clk 0:00:13.9]} 56. Ke5 {[%clk 0:00:16.9]} 56... Ka4 {[%clk 0:00:13.4]} 57.
Nb6+ {[%clk 0:00:16]} 57... Ka5 {[%clk 0:00:13.8]} 58. Nd7 {[%clk 0:00:15.5]}
58... Ka4 {[%clk 0:00:13.7]} 59. Nf6 {[%clk 0:00:15.3]} 59... Nxc3 {[%clk
0:00:13.6]} 60. d5 {[%clk 0:00:15.7]} 60... a2 {[%clk 0:00:13.1]} 61. d6 {[%clk
0:00:15.4]} 61... Ka3 {[%clk 0:00:10.7]} 62. d7 {[%clk 0:00:15.1]} 1-0